bitfinex/quotes_SOLUSD_20251120
["timestamp","ask_amount","ask_price","bid_price","bid_amount"]
[1763668204248,0.2,133.3,133.27,12.29523713]
[1763668204649,0.2,133.3,133.25,18.12096]
[1763668204650,0.67,133.29,133.25,18.12096]
[1763668204854,12.96523713,133.29,133.23,14.78523713]
[1763668205359,0.87,133.3,133.25,12.29523713]
[1763668205575,0.87,133.3,133.26,12.29523713]
[1763668205760,0.2,133.3,133.27,12.29523713]
[1763668206078,0.2,133.3,133.27,12.98523713]
[1763668206286,0.2,133.3,133.27,12.29523713]
[1763668206459,0.2,133.3,133.27,12.98523713]
[1763668206661,0.87,133.3,133.26,12.29523713]
[1763668206856,0.2,133.3,133.25,0.69]
[1763668207071,0.2,133.3,133.29,12.29523713]
[1763668207273,0.2,133.3,133.29,22.08406482]
[1763668207483,0.1,133.31,133.29,40.89502482]
[1763668207683,0.1,133.31,133.3,22.77406482]
[1763668208926,0.1,133.31,133.3,40.89502482]
[1763668210985,0.1,133.31,133.29,9.78882769]
[1763668211364,0.1,133.31,133.28,32.90619713]
[1763668211588,0.1,133.31,133.28,2.49]
[1763668211794,12.29523713,133.3,133.28,1.8]
[1763668212479,0.1,133.31,133.28,1.8]
[1763668212683,0.1,133.31,133.29,12.98523713]
[1763668212881,0.1,133.31,133.3,12.29523713]
[1763668213189,0.1,133.31,133.29,0.69]
[1763668213381,0.1,133.31,133.29,12.98523713]
[1763668214802,0.1,133.31,133.26,8.51831422]
[1763668214976,7.82831422,133.3,133.26,8.51831422]
[1763668215289,0.1,133.31,133.28,25.94927422]
[1763668215508,0.1,133.31,133.28,26.63927422]
[1763668216377,0.1,133.31,133.29,12.27882769]
[1763668216571,0.1,133.31,133.29,20.10714191]
[1763668216799,0.1,133.31,133.29,12.27882769]
[1763668217076,0.1,133.31,133.29,20.10714191]
[1763668217383,0.1,133.31,133.3,0.69]
[1763668217779,0.1,133.31,133.29,19.41714191]
[1763668217976,0.1,133.31,133.29,10.31831422]
[1763668218196,7.92831422,133.31,133.27,9.78882769]
[1763668218499,7.82831422,133.3,133.28,59.50739137]
[1763668218876,0.1,133.31,133.28,59.50739137]
[1763668219075,0.1,133.31,133.28,68.02570559]
[1763668219687,0.1,133.31,133.29,10.47882769]
[1763668219877,0.1,133.31,133.3,1.8]
[1763668220078,0.1,133.31,133.3,10.31831422]
[1763668220272,0.1,133.31,133.3,1.8]
[1763668220788,0.1,133.31,133.3,61.30739137]
[1763668222204,7.92831422,133.31,133.3,61.30739137]
[1763668222598,0.1,133.31,133.3,61.30739137]
[1763668223004,0.1,133.31,133.3,2.47]
[1763668223304,0.1,133.31,133.3,9.62831422]
[1763668223483,0.1,133.31,133.3,79.59453328]
[1763668223691,0.1,133.34,133.33,27.90978769]
[1763668223890,0.1,133.34,133.33,36.40810191]
[1763668224294,0.1,133.34,133.33,28.57978769]
[1763668224489,0.1,133.34,133.33,36.40810191]
[1763668226888,0.1,133.34,133.33,28.57978769]
[1763668227196,0.1,133.34,133.33,29.32980644]
[1763668227502,0.1,133.34,133.33,37.15812066]
[1763668228413,0.1,133.34,133.33,28.57978769]
[1763668229427,0.1,133.34,133.33,36.40810191]
[1763668230029,0.1,133.34,133.33,27.90978769]
[1763668231236,0.1,133.34,133.33,28.57978769]
[1763668231450,0.1,133.38,133.37,27.90978769]
[1763668231634,0.1,133.38,133.37,29.70978769]
[1763668232729,8.64831422,133.38,133.37,1.8]
[1763668233130,8.64831422,133.38,133.34,11.58882769]
[1763668233443,7.82831422,133.36,133.34,11.58882769]
[1763668233637,7.82831422,133.35,133.34,1.8]
[1763668233836,7.82831422,133.35,133.31,9.78882769]
[1763668234008,7.82831422,133.32,133.26,8.49831422]
[1763668234212,7.82831422,133.3,133.27,1.8]
[1763668234412,0.72,133.34,133.27,1.8]
[1763668234413,0.72,133.33,133.28,9.78882769]
[1763668234640,7.82831422,133.31,133.27,2.47]
[1763668234812,7.82831422,133.31,133.28,9.78882769]
[1763668235841,7.82831422,133.3,133.28,9.78882769]
[1763668236051,7.82831422,133.29,133.27,1.8]
[1763668236220,8.54831422,133.3,133.27,1.8]
[1763668236751,7.82831422,133.29,133.27,19.92096]
[1763668237037,57.82831422,133.36,133.28,10.45882769]
[1763668237038,7.82831422,133.32,133.28,10.45882769]
[1763668238145,0.72,133.31,133.28,9.78882769]
[1763668238321,0.72,133.31,133.28,18.12096]
[1763668238322,7.82831422,133.3,133.28,18.12096]
[1763668238736,57.82831422,133.36,133.27,1.8]
[1763668238737,8.54831422,133.29,133.27,1.8]
[1763668238974,7.82831422,133.29,133.27,1.8]
[1763668239116,0.72,133.32,133.28,9.78882769]
[1763668239315,7.82831422,133.29,133.27,1.8]
[1763668239516,7.82831422,133.3,133.27,1.8]
[1763668239742,0.72,133.32,133.28,9.78882769]
[1763668239938,7.82831422,133.31,133.28,9.78882769]
[1763668240346,8.54831422,133.32,133.28,9.78882769]
[1763668240552,7.82831422,133.33,133.3,9.78882769]
[1763668241036,0.72,133.33,133.3,9.78882769]
[1763668241244,0.1,133.38,133.32,9.78882769]
[1763668241426,7.82831422,133.35,133.32,9.78882769]
[1763668241930,7.82831422,133.36,133.32,35.73810191]
[1763668242128,7.82831422,133.36,133.33,7.82831422]
[1763668242129,0.72,133.36,133.33,7.82831422]
[1763668242331,7.82831422,133.37,133.32,36.40810191]
[1763668242638,8.54831422,133.37,133.32,36.40810191]
[1763668242837,8.54831422,133.37,133.34,9.78882769]
[1763668242838,0.72,133.37,133.34,9.78882769]
[1763668243061,0.72,133.36,133.34,9.78882769]
[1763668243229,0.72,133.36,133.33,9.78882769]
[1763668243434,7.82831422,133.37,133.33,17.61714191]
[1763668243649,8.54831422,133.37,133.33,17.61714191]
[1763668243952,0.1,133.38,133.34,0.67]
[1763668244113,0.1,133.38,133.35,9.62831422]
[1763668244318,0.1,133.38,133.35,1.8]
[1763668244519,8.64831422,133.38,133.35,1.8]
[1763668244746,0.82,133.38,133.35,1.8]
[1763668244926,0.1,133.38,133.35,9.62831422]
[1763668245352,0.1,133.38,133.37,17.61714191]
[1763668245642,0.1,133.4,133.38,9.78882769]
[1763668245844,0.1,133.4,133.39,27.74927422]
[1763668246028,0.1,133.4,133.39,28.30927422]
[1763668246416,0.1,133.4,133.39,38.09810191]
[1763668246830,0.1,133.4,133.39,30.26978769]
[1763668247030,0.1,133.4,133.39,38.09810191]
[1763668247222,0.1,133.4,133.39,29.70978769]
[1763668247641,0.1,133.4,133.39,19.92096]
[1763668248529,0.02669258,133.4,133.39,19.92096]
[1763668249131,8.5750068,133.4,133.39,1.8]
[1763668249323,0.02669258,133.4,133.36,20.16699193]
[1763668249659,0.82,133.45,133.38,9.78882769]
[1763668249823,7.82831422,133.42,133.38,9.78882769]
[1763668250330,8.49831422,133.42,133.38,9.78882769]
[1763668250525,7.82831422,133.43,133.38,10.34882769]
[1763668250850,8.49831422,133.44,133.38,18.17714191]
[1763668251025,0.1,133.45,133.41,18.12096]
[1763668251230,0.1,133.45,133.42,9.78882769]
[1763668251545,0.1,133.45,133.44,25.94927422]
[1763668251847,0.1,133.45,133.44,37.53810191]
[1763668252050,0.02899738,133.45,133.44,38.09810191]
[1763668252233,0.67,133.52,133.44,19.97714191]
[1763668252437,0.67,133.56,133.48,17.61714191]
[1763668252637,7.82831422,133.52,133.49,1.8]
[1763668252840,7.82831422,133.5,133.47,9.78882769]
[1763668253050,7.82831422,133.49,133.47,9.78882769]
[1763668253230,7.82831422,133.49,133.46,1.8]
[1763668253744,7.82831422,133.47,133.41,9.78882769]
[1763668253971,7.82831422,133.46,133.44,18.12096]
[1763668254129,8.49831422,133.46,133.44,18.12096]
[1763668254459,8.49831422,133.45,133.4,1.8]
[1763668254653,7.82831422,133.43,133.4,19.92096]
[1763668254961,8.49831422,133.44,133.4,19.92096]
[1763668255164,18.12096,133.5,133.41,9.78882769]
[1763668255165,18.79096,133.48,133.41,9.78882769]
[1763668255349,7.82831422,133.45,133.41,9.78882769]
[1763668255551,7.82831422,133.46,133.41,9.78882769]
[1763668255728,0.67,133.5,133.41,9.78882769]
[1763668255930,7.82831422,133.46,133.41,9.78882769]
[1763668256463,8.42815616,133.46,133.41,18.14714191]
[1763668256634,7.75815616,133.46,133.41,9.78882769]
[1763668256830,8.49831422,133.45,133.41,9.78882769]
[1763668257233,8.49831422,133.44,133.41,9.78882769]
[1763668257734,0.59551635,133.43,133.4,1.8]
[1763668258839,0.52308271,133.43,133.4,1.8]
[1763668259450,7.82831422,133.44,133.4,1.8]
[1763668259747,7.82831422,133.45,133.41,27.90978769]
[1763668259944,7.82831422,133.46,133.41,35.73810191]
[1763668260145,50.0,133.51,133.41,27.90978769]
[1763668260146,7.82831422,133.45,133.41,27.90978769]
[1763668260360,50.0,133.51,133.41,199.53810191]
[1763668260547,50.0,133.55,133.43,7.82831422]
[1763668260751,50.0,133.55,133.46,18.12096]
[1763668260951,7.82831422,133.51,133.48,18.12096]
[1763668261261,8.42323381,133.51,133.48,18.12096]
[1763668261494,0.67,133.51,133.47,25.94927422]
[1763668261668,7.82831422,133.52,133.48,9.78882769]
[1763668261965,0.67,133.51,133.48,1.8]
[1763668262144,8.49831422,133.51,133.48,1.8]
[1763668262336,0.59640202,133.51,133.48,1.8]
[1763668262739,0.59640202,133.51,133.48,11.58882769]
[1763668262957,7.82831422,133.53,133.49,9.78882769]
[1763668263157,68.12096,133.57,133.49,9.78882769]
[1763668263369,7.82831422,133.53,133.49,9.78882769]
[1763668264369,7.82831422,133.53,133.48,9.62831422]
[1763668264570,50.0,133.57,133.48,1.8]
[1763668264864,0.67,133.5,133.48,1.8]
[1763668265485,7.82831422,133.51,133.45,38.23810191]
[1763668265669,0.59842977,133.5,133.47,9.78882769]
[1763668266384,18.12096,133.54,133.47,0.7]
[1763668266684,7.82831422,133.51,133.46,17.61714191]
[1763668266867,7.82831422,133.5,133.46,9.78882769]
[1763668267053,7.82831422,133.49,133.46,9.78882769]
[1763668267258,7.82831422,133.49,133.45,19.92096]
[1763668267772,8.49831422,133.48,133.45,19.92096]
[1763668267963,0.67,133.48,133.45,1.8]
[1763668268171,0.67,133.46,133.42,9.78882769]
[1763668268377,7.82831422,133.43,133.36,22.3987392]
[1763668268560,7.82831422,133.41,133.37,1.8]
[1763668268765,7.82831422,133.41,133.38,9.78882769]
[1763668269015,7.82831422,133.41,133.38,18.12096]
[1763668269169,8.49831422,133.4,133.37,1.8]
[1763668269371,0.67,133.4,133.37,1.8]
[1763668269586,8.49831422,133.39,133.37,19.92096]
[1763668269882,8.49831422,133.39,133.37,1.8]
[1763668270254,8.42442336,133.39,133.36,9.78882769]
[1763668270461,7.82831422,133.44,133.34,1.8]
[1763668270462,7.82831422,133.38,133.34,1.8]
[1763668270962,7.82831422,133.37,133.34,1.8]
[1763668271177,7.82831422,133.37,133.32,9.78882769]
[1763668271501,50.0,133.4,133.31,1.8]
[1763668271673,7.82831422,133.36,133.32,18.12096]
[1763668272173,7.82831422,133.36,133.33,9.78882769]
[1763668272684,8.49831422,133.35,133.33,18.12096]
[1763668273090,8.49831422,133.35,133.32,9.78882769]
[1763668273386,8.49831422,133.34,133.31,1.8]
[1763668273684,0.67,133.41,133.32,7.82831422]
[1763668273862,0.67,133.41,133.33,9.78882769]
[1763668274063,7.82831422,133.36,133.33,9.78882769]
[1763668274382,7.82831422,133.36,133.32,9.78882769]
[1763668274572,0.67,133.35,133.31,9.62831422]
[1763668274887,12.2558855,133.36,133.34,18.12096]
[1763668275060,12.9258855,133.37,133.34,18.12096]
[1763668275264,12.2558855,133.38,133.33,40.16567319]
[1763668275675,12.9258855,133.38,133.33,40.86567319]
[1763668276064,0.67,133.37,133.33,27.90978769]
[1763668276390,68.12096,133.42,133.31,2.5]
[1763668276391,12.2558855,133.42,133.38,18.12096]
[1763668276574,12.9258855,133.41,133.38,18.12096]
[1763668276776,12.2558855,133.39,133.37,1.8]
[1763668276961,12.2558855,133.39,133.37,18.12096]
[1763668277164,12.9258855,133.39,133.37,18.12096]
[1763668277488,12.9258855,133.39,133.35,27.90978769]
[1763668277489,0.67,133.39,133.35,27.90978769]
[1763668277661,12.9258855,133.39,133.35,27.90978769]
[1763668277862,12.2558855,133.4,133.35,40.16567319]
[1763668278061,12.2558855,133.39,133.35,27.90978769]
[1763668278290,12.2558855,133.38,133.35,18.12096]
[1763668278780,12.9258855,133.38,133.35,18.12096]
[1763668279177,12.2558855,133.39,133.35,30.3768455]
[1763668279366,12.2558855,133.38,133.35,18.12096]
[1763668279564,0.59956596,133.39,133.35,18.12096]
[1763668279868,12.2558855,133.38,133.35,18.12096]
[1763668280071,50.0,133.44,133.35,18.12096]
[1763668280279,12.2558855,133.38,133.35,18.12096]
[1763668280476,12.2558855,133.37,133.34,1.8]
[1763668280680,12.2558855,133.37,133.33,18.12096]
[1763668281089,12.2558855,133.35,133.33,18.12096]
[1763668281462,12.2558855,133.35,133.31,63.0]
[1763668281679,12.9158855,133.34,133.29,12.2558855]
[1763668281877,0.66,133.33,133.3,18.12096]
[1763668282780,12.2558855,133.34,133.3,18.80096]
[1763668283198,12.9158855,133.33,133.3,18.12096]
[1763668283382,12.2558855,133.32,133.3,18.12096]
[1763668283875,0.66,133.31,133.3,18.12096]
[1763668284062,12.2558855,133.32,133.28,90.90978769]
[1763668284262,12.9158855,133.32,133.28,90.90978769]
[1763668284467,12.2558855,133.34,133.29,22.72471319]
[1763668284695,12.9158855,133.35,133.31,27.90978769]
[1763668284990,12.9158855,133.35,133.31,89.10978769]
[1763668285171,0.66,133.34,133.31,79.32096]
[1763668285374,12.8437437,133.34,133.31,79.32096]
[1763668286074,12.2558855,133.33,133.31,79.32096]
[1763668287195,12.2558855,133.32,133.29,61.2]
[1763668287381,12.2558855,133.31,133.28,63.0]
[1763668287584,12.9158855,133.29,133.24,0.2]
[1763668287887,12.9158855,133.29,133.16,41.79504461]
[1763668287888,12.2558855,133.25,133.16,2.48]
[1763668288091,12.2558855,133.22,133.18,18.12096]
[1763668288275,12.2558855,133.22,133.17,0.68]
[1763668288593,12.2558855,133.22,133.19,18.12096]
[1763668288800,12.9158855,133.22,133.19,18.12096]
[1763668289182,0.66,133.22,133.19,18.12096]
[1763668289586,12.9158855,133.22,133.19,18.12096]
[1763668290214,12.2558855,133.22,133.19,18.12096]
[1763668290584,12.2558855,133.22,133.18,0.68]
[1763668291206,0.71,133.27,133.21,19.00096]
[1763668291388,12.2558855,133.24,133.21,19.00096]
[1763668291586,12.2558855,133.22,133.21,18.32096]
[1763668291805,12.2558855,133.22,133.21,0.2]
[1763668292105,12.9658855,133.22,133.21,0.2]
[1763668292602,12.9658855,133.22,133.14,0.68]
[1763668292809,0.71,133.21,133.14,10.46882769]
[1763668293106,0.71,133.25,133.17,12.2558855]
[1763668293309,1.8,133.26,133.18,22.04471319]
[1763668293310,12.2558855,133.22,133.18,22.04471319]
[1763668293621,0.71,133.27,133.21,30.3768455]
[1763668293788,12.2558855,133.26,133.21,30.3768455]
[1763668294093,1.8,133.29,133.21,18.12096]
[1763668294094,12.2558855,133.24,133.21,18.12096]
[1763668294300,12.9658855,133.25,133.21,18.12096]
[1763668294494,12.2558855,133.24,133.21,18.12096]
[1763668295405,12.2558855,133.22,133.18,9.78882769]
[1763668295607,12.2558855,133.21,133.18,9.78882769]
[1763668295905,12.2558855,133.21,133.18,10.46882769]
[1763668296703,0.71,133.21,133.17,18.12096]
[1763668296904,12.2558855,133.2,133.18,18.12096]
[1763668298195,12.2558855,133.22,133.19,0.68]
[1763668298813,12.2558855,133.22,133.18,18.12096]
[1763668298996,12.9658855,133.22,133.18,18.80096]
[1763668299381,0.71,133.28,133.21,9.78882769]
[1763668299688,50.0,133.36,133.18,19.92096]
[1763668299689,0.71,133.29,133.24,30.3768455]
[1763668299890,12.9658855,133.29,133.24,30.3768455]
[1763668300099,12.9658855,133.29,133.24,31.0568455]
[1763668300292,12.9658855,133.29,133.25,12.2558855]
[1763668300513,0.71,133.29,133.25,12.9358855]
[1763668300921,12.9658855,133.29,133.24,18.12096]
[1763668301081,12.2558855,133.3,133.26,30.3768455]
[1763668301281,0.71,133.32,133.26,30.3768455]
[1763668301511,79.70978769,133.35,133.26,30.3768455]
[1763668301512,12.2558855,133.3,133.26,30.3768455]
[1763668302007,12.9658855,133.3,133.26,30.3768455]
[1763668302212,12.2558855,133.31,133.27,0.68]
[1763668302506,0.71,133.33,133.27,12.9358855]
[1763668302507,12.2558855,133.32,133.27,12.9358855]
[1763668302716,12.2558855,133.31,133.27,12.2558855]
[1763668302926,0.71,133.31,133.27,12.2558855]
[1763668303112,12.2558855,133.33,133.29,12.2558855]
[1763668303302,12.2558855,133.32,133.28,0.68]
[1763668304328,0.71,133.36,133.31,27.90978769]
[1763668304618,12.2558855,133.38,133.33,12.2558855]
[1763668304798,12.9658855,133.38,133.33,12.2558855]
[1763668304996,0.71,133.37,133.33,12.9358855]
[1763668305194,12.9658855,133.37,133.33,0.68]
[1763668305409,12.9658855,133.37,133.31,40.84567319]
[1763668305629,12.9658855,133.37,133.31,28.58978769]
[1763668305797,12.2558855,133.38,133.33,22.04471319]
[1763668305994,12.9658855,133.39,133.34,12.9358855]
[1763668306193,12.9658855,133.39,133.33,9.78882769]
[1763668306194,12.2558855,133.38,133.33,22.04471319]
[1763668306400,12.2558855,133.37,133.32,12.2558855]
[1763668306925,12.9658855,133.37,133.32,12.9358855]
[1763668307809,50.0,133.41,133.32,9.78882769]
[1763668307810,12.9658855,133.36,133.32,9.78882769]
[1763668308014,12.2558855,133.36,133.32,9.78882769]
[1763668308220,12.2558855,133.36,133.32,10.46882769]
[1763668308516,12.2558855,133.37,133.32,22.72471319]
[1763668308921,12.2558855,133.37,133.33,0.68]
[1763668309226,12.2558855,133.38,133.33,12.9358855]
[1763668309420,0.71,133.39,133.34,12.2558855]
[1763668309615,0.71,133.39,133.34,30.3768455]
[1763668309826,0.71,133.39,133.35,12.9358855]
[1763668310040,12.9658855,133.39,133.35,0.68]
[1763668310725,0.66,133.43,133.38,18.12096]
[1763668310904,12.9158855,133.43,133.38,30.3768455]
[1763668311212,12.9158855,133.43,133.38,19.92096]
[1763668311404,0.66,133.42,133.38,32.1768455]
[1763668311711,0.1,133.45,133.39,22.71471319]
[1763668311712,12.2558855,133.44,133.39,22.71471319]
[1763668312334,12.9158855,133.44,133.39,22.71471319]
[1763668312525,12.9158855,133.44,133.39,10.45882769]
[1763668312724,12.2558855,133.43,133.39,10.45882769]
[1763668313230,12.9158855,133.42,133.38,81.12096]
[1763668313429,0.66,133.42,133.38,19.92096]
[1763668313624,12.9158855,133.42,133.38,19.92096]
[1763668313937,12.9158855,133.42,133.38,42.66507313]
[1763668314111,12.9158855,133.42,133.38,20.59096]
[1763668315223,12.2558855,133.43,133.38,32.8468455]
[1763668315424,12.2558855,133.44,133.39,40.83567319]
[1763668315603,0.76,133.45,133.4,12.2558855]
[1763668315604,13.0158855,133.45,133.4,12.2558855]
[1763668315806,0.76,133.45,133.41,22.04471319]
[1763668316012,0.76,133.45,133.41,22.71471319]
[1763668316332,13.0158855,133.45,133.4,10.45882769]
[1763668316507,13.0158855,133.45,133.4,22.71471319]
[1763668316905,12.2558855,133.43,133.4,9.78882769]
[1763668317320,0.76,133.45,133.41,0.67]
[1763668317635,0.1,133.45,133.44,18.12096]
[1763668318033,0.1,133.45,133.44,18.79096]
[1763668318210,0.1,133.45,133.44,18.12096]
[1763668318717,0.1,133.45,133.42,14.7258855]
[1763668318718,0.1,133.45,133.42,30.37978769]
[1763668320538,0.76,133.45,133.42,18.12096]
[1763668320718,12.2558855,133.44,133.42,18.12096]
[1763668320922,0.1,133.45,133.42,31.0468455]
[1763668321237,0.1,133.45,133.43,0.67]
[1763668321556,0.1,133.45,133.43,2.47]
[1763668321742,0.1,133.45,133.43,1.8]
[1763668322239,0.1,133.45,133.43,2.47]
[1763668323043,0.1,133.45,133.43,1.8]
[1763668323230,12.9158855,133.44,133.39,9.78882769]
[1763668323541,12.9158855,133.44,133.39,12.9258855]
[1763668323838,0.1,133.45,133.39,12.9258855]
[1763668323839,12.9158855,133.43,133.39,10.45882769]
[1763668324058,12.9158855,133.43,133.37,1.8]
[1763668324214,12.2558855,133.41,133.37,1.8]
[1763668324419,12.2558855,133.39,133.37,1.8]
[1763668324626,12.9158855,133.38,133.34,22.11177627]
[1763668324827,12.2558855,133.37,133.32,12.9258855]
[1763668325139,0.66,133.38,133.33,30.3768455]
[1763668325140,12.2558855,133.38,133.33,30.3768455]
[1763668325341,12.9158855,133.37,133.33,18.12096]
[1763668325741,50.0,133.41,133.33,31.0468455]
[1763668325944,0.66,133.37,133.33,18.79096]
[1763668326241,12.2558855,133.36,133.33,18.12096]
[1763668326447,12.9158855,133.37,133.33,18.12096]
[1763668326623,12.2558855,133.35,133.31,23.95952261]
[1763668326827,50.0,133.39,133.31,1.8]
[1763668326828,12.2558855,133.34,133.31,1.8]
[1763668327030,12.2558855,133.34,133.32,18.12096]
[1763668327356,12.2558855,133.35,133.31,1.8]
[1763668327528,12.2558855,133.35,133.3,12.2558855]
[1763668327730,0.66,133.34,133.3,18.12096]
[1763668327927,12.9158855,133.34,133.3,18.12096]
[1763668328152,12.9158855,133.34,133.3,40.52752991]
[1763668328351,0.66,133.34,133.3,52.78341541]
[1763668328529,12.2558855,133.37,133.33,30.3768455]
[1763668328958,12.9158855,133.37,133.33,30.3768455]
[1763668329247,12.2558855,133.34,133.31,18.12096]
[1763668329626,0.66,133.37,133.31,30.3768455]
[1763668329827,12.2558855,133.36,133.31,31.0468455]
[1763668330060,0.66,133.4,133.35,12.2558855]
[1763668330227,0.66,133.4,133.37,12.2558855]
[1763668330425,0.66,133.4,133.37,18.12096]
[1763668330628,0.66,133.4,133.36,12.2558855]
[1763668330629,0.66,133.4,133.35,12.2558855]
[1763668330851,12.2558855,133.39,133.34,28.57978769]
[1763668331053,12.2558855,133.39,133.34,40.83567319]
[1763668331236,12.9158855,133.39,133.35,12.9258855]
[1763668331446,12.9158855,133.39,133.35,12.2558855]
[1763668331640,0.66,133.38,133.34,30.3768455]
[1763668331956,12.2558855,133.35,133.3,22.40656991]
[1763668332252,0.66,133.38,133.29,12.9258855]
[1763668332253,12.9158855,133.34,133.29,12.9258855]
[1763668332432,12.9158855,133.34,133.29,31.0468455]
[1763668332633,0.66,133.33,133.29,12.9258855]
[1763668333060,0.66,133.33,133.29,18.12096]
[1763668333232,0.66,133.33,133.29,53.44609082]
[1763668333626,0.66,133.37,133.32,12.2558855]
[1763668333826,12.2558855,133.38,133.34,12.2558855]
[1763668334066,12.2558855,133.38,133.34,22.04471319]
[1763668334357,12.9158855,133.38,133.34,22.04471319]
[1763668334559,12.9158855,133.38,133.34,22.71471319]
[1763668334739,59.88882769,133.45,133.36,12.2558855]
[1763668335060,7.81627122,133.41,133.37,7.81627122]
[1763668335257,8.47627122,133.42,133.36,11.58882769]
[1763668335454,7.81627122,133.4,133.35,7.81627122]
[1763668335753,7.81627122,133.39,133.35,7.81627122]
[1763668336058,7.81627122,133.39,133.34,17.60509891]
[1763668336250,8.47627122,133.39,133.34,18.27509891]
[1763668336434,8.47627122,133.39,133.35,0.67]
[1763668337456,7.81627122,133.4,133.37,18.12096]
[1763668337952,7.81627122,133.41,133.37,18.79096]
[1763668338140,8.47627122,133.41,133.37,18.12096]
[1763668338544,8.47627122,133.41,133.37,25.93723122]
[1763668338745,8.47627122,133.4,133.35,25.93723122]
[1763668339166,8.47627122,133.4,133.35,26.60723122]
[1763668339465,7.81627122,133.38,133.35,18.12096]
[1763668339865,8.47627122,133.39,133.35,18.12096]
[1763668340360,8.50627122,133.38,133.35,18.12096]
[1763668340543,7.81627122,133.37,133.35,61.2]
[1763668340745,0.69,133.37,133.35,61.2]
[1763668341342,0.69,133.37,133.33,20.59096]
[1763668341542,7.81627122,133.37,133.33,28.41723122]
[1763668341737,7.81627122,133.38,133.33,28.41723122]
[1763668342164,0.69,133.4,133.34,8.49627122]
[1763668342466,7.81627122,133.39,133.34,18.28509891]
[1763668342646,0.69,133.4,133.34,18.28509891]
[1763668342843,7.81627122,133.39,133.34,18.28509891]
[1763668343044,7.81627122,133.37,133.33,19.92096]
[1763668343564,8.50627122,133.37,133.33,1.8]
[1763668343862,7.81627122,133.35,133.3,8.49627122]
[1763668344250,0.69,133.34,133.3,8.49627122]
[1763668344887,8.50627122,133.34,133.29,88.93723122]
[1763668345040,0.69,133.34,133.3,7.81627122]
[1763668345563,8.50627122,133.34,133.29,71.49627122]
[1763668345769,69.92096,133.38,133.29,71.49627122]
[1763668345770,7.81627122,133.35,133.31,7.81627122]
[1763668345954,8.50627122,133.36,133.31,7.81627122]
[1763668346161,8.50627122,133.35,133.31,0.68]
[1763668346364,8.50627122,133.35,133.3,69.01627122]
[1763668346545,0.69,133.34,133.3,69.01627122]
[1763668346745,0.69,133.34,133.3,69.69627122]
[1763668346946,8.50627122,133.34,133.3,61.2]
[1763668347359,7.81627122,133.34,133.3,61.2]
[1763668347671,0.69,133.34,133.3,61.88]
[1763668347875,8.50627122,133.34,133.3,61.88]
[1763668348073,8.50627122,133.34,133.29,1.8]
[1763668348270,7.81627122,133.3,133.28,61.2]
[1763668348480,7.81627122,133.3,133.26,69.69627122]
[1763668348688,8.50627122,133.32,133.27,8.49627122]
[1763668348886,0.69,133.32,133.27,8.49627122]
[1763668349185,7.81627122,133.33,133.28,8.49627122]
[1763668349487,7.81627122,133.33,133.28,69.69627122]
[1763668349653,8.50627122,133.33,133.29,0.68]
[1763668350266,7.81627122,133.34,133.3,7.81627122]
[1763668350454,7.81627122,133.35,133.31,8.53627122]
[1763668350790,1.8,133.38,133.34,7.81627122]
[1763668350791,7.81627122,133.38,133.34,7.81627122]
[1763668351182,8.50627122,133.38,133.34,0.72]
[1763668351356,7.81627122,133.35,133.33,1.8]
[1763668351555,7.81627122,133.34,133.3,20.12509891]
[1763668351858,7.81627122,133.34,133.3,2.52]
[1763668352094,0.69,133.36,133.31,8.53627122]
[1763668352095,7.81627122,133.35,133.31,8.53627122]
[1763668352384,8.50627122,133.36,133.31,8.53627122]
[1763668352557,8.50627122,133.36,133.32,0.72]
[1763668353564,18.81096,133.38,133.32,0.72]
[1763668353881,51.8,133.39,133.32,0.72]
[1763668353882,8.50627122,133.37,133.32,8.53627122]
[1763668354065,7.81627122,133.36,133.32,8.53627122]
[1763668354264,8.50627122,133.36,133.32,8.53627122]
[1763668354459,8.50627122,133.36,133.32,18.84096]
[1763668355177,8.50627122,133.36,133.32,26.65723122]